bitfinex-derivatives/quotes_ETHF0:USTF0_20250828
["timestamp","ask_amount","ask_price","bid_price","bid_amount"]
[1756347537663,0.6944,4517.2,4517.1,3.2078]
[1756347537854,21.22977617,4517.2,4517.1,4.4764]
[1756347538166,21.0444,4517.2,4517.1,1.7006]
[1756347538359,21.229776,4517.2,4517.1,0.9828]
[1756347538554,21.229776,4517.2,4517.1,0.5947]
[1756347538754,21.229776,4517.2,4517.1,0.2857]
[1756347540154,21.229776,4517.2,4516.8,0.2857]
[1756347540358,0.6944,4516.9,4516.8,0.2857]
[1756347540558,21.228776,4516.9,4516.8,0.2857]
[1756347540759,21.228776,4516.9,4516.8,0.9828]
[1756347541154,21.228776,4516.9,4516.8,0.7815]
[1756347541555,21.228776,4516.9,4516.8,1.2686]
[1756347541755,21.228776,4516.9,4516.8,1.6757]
[1756347541956,21.0434,4516.9,4516.8,1.6757]
[1756347542154,21.17033896,4516.9,4516.8,1.6757]
[1756347542359,21.56903896,4516.9,4516.8,1.6757]
[1756347545362,0.54023896,4516.9,4516.8,5.89709]
[1756347545663,0.671,4517.7,4517.6,2.10582]
[1756347545964,1.21255578,4517.7,4517.6,2.10582]
[1756347546562,0.54155578,4517.7,4517.6,6.32717]
[1756347546860,0.8689,4518.5,4518.4,1.3003]
[1756347547064,1.1522,4518.5,4518.4,1.3003]
[1756347547457,0.8689,4518.5,4518.4,1.7074]
[1756347548165,1.1522,4518.5,4518.4,1.7074]
[1756347548660,0.8689,4518.5,4518.4,1.7074]
[1756347549063,0.3987,4518.5,4518.4,1.7074]
[1756347549564,0.5966,4518.5,4518.4,1.7074]
[1756347549967,0.8689,4518.5,4518.4,1.7074]
[1756347550467,1.1522,4518.5,4518.4,1.7074]
[1756347550965,1.1522,4518.5,4518.4,0.6111]
[1756347551967,0.8689,4518.0,4517.9,0.80549]
[1756347552166,0.8689,4518.0,4517.9,1.49469]
[1756347552566,0.8689,4518.0,4517.9,2.10579]
[1756347552765,0.3987,4518.0,4517.9,2.10579]
[1756347553065,0.3987,4518.6,4518.3,0.39835]
[1756347553265,6.8749,4518.5,4518.4,1.7074]
[1756347553870,7.5459,4518.5,4518.4,1.7074]
[1756347554466,0.2833,4518.1,4517.7,40.8]
[1756347554765,0.8689,4517.8,4517.7,41.5123]
[1756347554965,0.4702,4517.8,4517.6,3.2078]
[1756347555169,3.2078,4518.6,4517.6,3.2078]
[1756347555170,1.1522,4517.7,4517.6,3.2078]
[1756347556563,0.682,4517.6,4517.2,0.8103]
[1756347556766,1.1522,4517.3,4517.2,1.3003]
[1756347557262,1.1522,4517.2,4517.1,3.2078]
[1756347557468,0.4702,4517.2,4516.7,0.6111]
[1756347557670,1.1522,4516.8,4516.7,0.6111]
[1756347557867,1.1522,4516.7,4516.6,3.2078]
[1756347558168,1.1522,4516.7,4516.6,3.8189]
[1756347558775,1.1522,4516.7,4516.6,0.6111]
[1756347559467,1.1522,4516.7,4516.6,1.0132]
[1756347559770,21.2099,4516.7,4516.3,0.6111]
[1756347559959,0.4702,4516.2,4516.1,3.8189]
[1756347560165,1.1522,4516.2,4516.1,3.8189]
[1756347560474,1.1522,4516.2,4516.1,3.2078]
[1756347560669,1.1522,4515.9,4515.6,3.2078]
[1756347560974,1.1522,4515.4,4515.3,1.0132]
[1756347561975,0.4702,4515.4,4515.1,3.8189]
[1756347562176,1.1522,4515.2,4515.1,3.8189]
[1756347562376,1.1522,4515.2,4515.1,4.221]
[1756347562576,1.1522,4515.2,4515.1,4.5081]
[1756347562976,1.1522,4515.2,4515.1,1.3003]
[1756347563579,0.4702,4515.2,4514.9,0.6111]
[1756347563877,0.4702,4515.0,4514.6,3.2078]
[1756347564074,1.1522,4514.7,4514.6,4.221]
[1756347564378,0.8689,4514.7,4514.6,4.9152]
[1756347564674,0.4702,4514.7,4514.6,4.9152]
[1756347564866,0.1979,4514.7,4514.6,4.9152]
[1756347565070,0.3987,4515.0,4514.6,3.897]
[1756347565270,0.8689,4515.0,4514.9,0.9951]
[1756347565477,0.8689,4515.0,4514.9,1.7074]
[1756347567480,0.8689,4515.5,4515.4,1.7074]
[1756347567776,0.2833,4516.0,4515.4,1.08781]
[1756347567971,1.1522,4515.9,4515.8,0.8103]
[1756347568178,0.4702,4515.3,4515.2,1.0182]
[1756347568369,0.4702,4515.3,4515.2,1.7074]
[1756347568877,0.8689,4515.3,4515.2,1.7074]
[1756347569075,21.2169,4516.0,4515.9,0.6892]
[1756347569376,21.5002,4516.0,4515.9,1.3003]
[1756347570372,0.8689,4516.0,4515.9,1.7074]
[1756347570770,3.2078,4516.6,4515.9,1.7074]
[1756347570969,0.4702,4516.5,4516.4,1.7074]
[1756347571475,0.3987,4516.8,4516.7,0.6892]
[1756347571676,21.2169,4517.1,4517.0,1.6753]
[1756347571975,0.8689,4517.1,4517.0,1.6753]
[1756347572277,0.4702,4517.1,4517.0,1.6753]
[1756347572473,35.0898,4517.7,4517.0,1.6753]
[1756347572676,35.952,4517.7,4517.6,1.2294]
[1756347572869,36.2511,4517.7,4517.0,0.2931]
[1756347573070,0.4947,4517.2,4516.9,0.2859]
[1756347573276,1.1613,4516.8,4516.7,0.2859]
[1756347573472,0.4065,4516.7,4516.6,0.4591]
[1756347573670,0.8622,4516.7,4516.6,1.6384]
[1756347574577,10.058,4517.1,4517.0,1.6384]
[1756347574876,11.2193,4517.1,4516.7,0.579]
[1756347575083,1.1613,4516.9,4516.8,0.579]
[1756347575274,1.1613,4516.9,4516.8,1.2294]
[1756347575576,0.8622,4516.9,4516.8,1.6384]
[1756347576581,0.2991,4517.3,4516.8,1.6384]
[1756347576777,20.351,4517.3,4517.1,1.6384]
[1756347577084,20.5466,4517.3,4517.2,1.6384]
[1756347577284,21.2132,4517.3,4517.2,1.6384]
[1756347578180,0.8622,4517.3,4517.2,1.6384]
[1756347578381,21.2152,4517.3,4517.2,1.6384]
[1756347578569,20.8087,4517.3,4517.2,1.6384]
[1756347579276,55.4368,4517.7,4517.6,0.988]
[1756347579477,3.2078,4517.7,4517.6,1.6384]
[1756347579882,4.1737,4518.2,4518.1,0.6504]
[1756347580182,4.5802,4518.2,4518.1,1.6384]
[1756347582279,4.07,4518.8,4518.7,1.6384]
[1756347582483,17.869,4518.8,4518.7,1.6384]
[1756347582682,0.8622,4518.8,4518.7,1.6384]
[1756347582879,0.8622,4518.8,4518.2,3.2078]
[1756347582880,32.0876,4519.4,4519.3,0.579]
[1756347583085,32.3477,4519.4,4519.3,1.6384]
[1756347583684,32.7542,4519.4,4519.3,1.6384]
[1756347583884,32.7542,4519.4,4519.3,1.2294]
[1756347583885,33.0533,4519.4,4519.3,1.2294]
[1756347584090,33.0533,4519.4,4519.3,0.7703]
[1756347584283,32.7542,4519.4,4519.0,0.1913]
[1756347584483,0.8622,4519.2,4519.1,0.579]
[1756347584684,0.6666,4519.0,4518.9,0.3864]
[1756347584875,31.892,4519.4,4518.9,0.6504]
[1756347585081,0.6021,4519.3,4519.2,1.6384]
[1756347585388,21.2082,4519.3,4519.2,1.6384]
[1756347585984,21.5073,4519.3,4519.2,0.579]
[1756347586190,21.5073,4519.3,4518.8,0.409]
[1756347586191,0.8622,4519.0,4518.9,1.6384]
[1756347589291,20.35119949,4519.3,4518.9,1.6384]
[1756347589493,0.00519949,4519.3,4519.2,1.6384]
[1756347589686,20.34519949,4519.3,4519.2,1.6384]
[1756347590597,0.86739949,4519.3,4519.2,1.6384]
[1756347590894,0.46089949,4519.3,4519.2,1.6384]
[1756347592498,0.00519949,4519.3,4519.2,1.6384]
[1756347597002,0.60729949,4519.3,4519.2,1.6384]
[1756347597194,0.86739949,4519.3,4519.2,1.6384]
[1756347598096,0.86739949,4519.3,4518.7,3.3991]
[1756347598308,1.1613,4518.8,4518.7,1.6384]
[1756347598600,21.4983,4518.8,4518.7,1.6384]
[1756347599504,0.8622,4518.8,4518.7,1.6384]
[1756347599799,21.5523,4518.8,4518.7,1.2294]
[1756347600002,21.5523,4518.8,4518.7,0.579]
[1756347600189,1.1613,4518.5,4518.4,1.2294]
[1756347600388,1.1613,4518.5,4517.0,5.03266439]
[1756347600389,1.1613,4518.5,4518.0,0.579]
[1756347600599,0.4557,4518.2,4518.1,1.2294]
[1756347600800,0.8622,4518.2,4518.1,1.6384]
[1756347600996,1.1613,4518.2,4518.1,1.2294]
[1756347601197,0.8622,4518.2,4518.1,1.6384]
[1756347603691,20.386,4518.4,4517.7,3.6062]
[1756347603692,0.2821,4518.1,4517.8,0.6019]
[1756347603903,0.889,4517.9,4517.8,1.7018]
[1756347605000,1.1711,4517.9,4517.8,0.7931]
[1756347605202,1.1711,4517.7,4517.4,0.2982]
[1756347605405,1.1711,4517.5,4517.4,0.6019]
[1756347606503,0.4765,4517.5,4517.2,3.8097]
[1756347606705,1.1711,4517.3,4517.2,4.1949]
[1756347606894,1.1711,4517.3,4517.2,4.482]
[1756347607700,1.1711,4517.3,4517.2,4.9096]
[1756347608002,1.1711,4517.3,4517.2,1.7018]
[1756347608316,1.1707,4517.0,4516.9,1.2742]
[1756347608504,0.8886,4517.0,4516.9,1.7018]
[1756347608700,0.1887,4517.0,4516.9,1.7018]
[1756347609503,0.4765,4517.0,4516.9,1.7018]
[1756347609807,0.8886,4517.0,4516.9,1.7018]
[1756347610009,0.4765,4517.0,4516.9,1.7018]
[1756347610201,0.2821,4517.4,4516.9,0.6723]
[1756347610398,0.6008,4517.3,4517.2,1.7018]
[1756347610603,0.8886,4518.0,4517.9,1.7018]
[1756347611500,3.21112134,4518.3,4518.2,1.4036]
[1756347611706,3.21112134,4518.3,4518.2,1.7018]
[1756347611907,0.00332134,4518.3,4518.2,1.7018]
[1756347612102,0.4121,4518.2,4517.7,0.7931]
[1756347612410,0.8886,4517.8,4517.7,1.7018]
[1756347612606,19.0101,4518.2,4517.7,0.6723]
[1756347612806,19.4866,4518.2,4518.1,1.7018]
[1756347616312,0.00332134,4518.3,4518.2,1.7018]
[1756347616809,0.00332134,4518.3,4518.2,5.92312]
[1756347617312,0.00332134,4518.3,4518.2,7.10270749]
[1756347617810,0.89192134,4518.3,4518.2,1.7018]
[1756347618005,21.56602134,4518.3,4518.2,1.2742]
[1756347618213,21.56602134,4518.3,4518.2,42.0742]
[1756347618402,21.56602134,4518.3,4518.2,1.2742]
[1756347618607,21.56602134,4518.3,4518.2,0.7931]
[1756347618808,0.2821,4518.0,4517.7,0.79642134]
[1756347619004,1.1707,4517.8,4517.7,1.27752134]
[1756347619306,21.5727,4517.8,4517.7,1.70512134]
[1756347619510,21.2906,4517.8,4517.7,1.70512134]
[1756347619709,0.8886,4517.8,4517.7,1.70512134]
[1756347620110,0.41542134,4518.3,4517.8,1.7018]
[1756347620415,0.89192134,4518.3,4518.2,1.7018]
[1756347620711,7.78802134,4518.3,4518.2,1.7018]
[1756347621010,7.78802134,4518.3,4518.2,1.2742]
[1756347621208,0.89192134,4518.3,4518.2,1.7018]
[1756347621412,21.57802134,4518.3,4518.2,0.6019]
[1756347621606,21.29592134,4518.3,4517.9,0.6019]
[1756347621812,0.7586,4518.0,4517.9,0.6019]
[1756347622011,1.1707,4518.0,4517.9,0.6019]
[1756347622411,21.2886,4518.0,4517.9,1.7018]
[1756347623009,21.2886,4518.0,4517.9,0.7959]
[1756347623010,21.5707,4518.0,4517.9,0.7959]
[1756347623212,21.5707,4518.0,4517.9,1.2742]
[1756347623414,21.5777,4518.0,4517.9,1.2742]
[1756347624009,0.4121,4518.2,4517.9,0.6723]
[1756347624215,0.00332134,4518.3,4518.2,1.7018]
[1756347624610,0.00332134,4518.3,4518.2,5.7018]
[1756347624819,0.00332134,4518.3,4518.2,46.5018]
[1756347625213,0.4121,4519.4,4518.2,50.20218388]
[1756347625518,20.41619949,4519.3,4519.1,1.7018]
[1756347625721,32.3535,4519.2,4519.1,1.7018]
[1756347626016,33.0477,4519.2,4519.1,1.2742]
[1756347626818,33.0477,4519.2,4519.1,0.7931]
[1756347627416,32.7656,4519.2,4519.1,1.7018]
[1756347628016,33.0477,4519.2,4519.1,1.7018]
[1756347628617,33.0477,4519.2,4519.1,1.2742]
[1756347629320,33.0477,4519.2,4519.1,0.9871]
[1756347629523,0.4765,4518.9,4518.4,0.4276]
[1756347629820,1.1707,4518.6,4518.5,0.6019]
[1756347630413,0.8886,4518.6,4518.5,1.2742]
[1756347630613,0.4121,4518.6,4518.5,1.7018]
[1756347630917,20.4,4519.1,4519.0,1.7018]
[1756347631115,3.2078,4519.2,4519.1,1.7018]
[1756347631421,0.00519949,4519.3,4519.2,2.10008]
[1756347631818,0.00519949,4519.3,4519.2,1.7018]
[1756347634221,0.19959949,4519.3,4519.2,1.7018]
[1756347634419,0.46609949,4519.3,4519.2,1.7018]
[1756347634622,0.86729949,4519.3,4519.2,1.7018]
[1756347636017,0.86729949,4519.3,4519.2,1.2742]
[1756347636223,1.16089949,4519.3,4519.2,1.2742]
[1756347636518,1.1557,4519.2,4519.1,3.2078]
[1756347637016,1.1557,4519.2,4519.1,4.1732]
[1756347637527,1.1557,4518.9,4518.8,0.5749]
[1756347638212,0.2936,4518.8,4518.6,3.6983]
[1756347638414,1.1557,4518.7,4518.6,0.2861]
[1756347638617,1.1557,4518.7,4518.1,0.5749]
[1756347638618,0.2936,4518.3,4518.1,0.5749]
[1756347638916,0.8621,4517.8,4517.7,1.66212134]
[1756347639121,1.1557,4517.8,4517.7,1.23372134]
[1756347639630,1.1557,4517.8,4517.7,0.96872134]
[1756347639927,1.1557,4517.8,4517.7,0.57822134]
[1756347640424,1.1557,4517.8,4517.7,0.00332134]
[1756347641228,1.1557,4517.8,4517.7,0.57822134]
[1756347641524,1.1557,4517.8,4517.7,0.96872134]
[1756347641723,1.1557,4517.8,4517.7,1.23372134]
[1756347641931,20.408,4518.1,4517.7,1.66212134]
[1756347642223,21.5637,4518.1,4518.0,0.5749]
[1756347642427,21.5637,4518.1,4518.0,0.9654]
[1756347642630,21.5637,4518.1,4518.0,1.2304]
[1756347643021,1.1557,4517.8,4517.7,0.00332134]
[1756347644130,5.37705,4517.8,4517.7,0.00332134]
[1756347644318,5.1557,4517.8,4517.7,0.00332134]
[1756347644522,25.5667,4517.8,4517.7,0.00332134]
[1756347645122,24.8719,4517.8,4516.9,0.5749]
[1756347645324,0.8621,4517.0,4516.9,1.6588]
[1756347645532,21.2721,4517.0,4516.9,1.6588]
[1756347645725,21.2721,4517.0,4516.4,1.205]
[1756347645924,1.1557,4516.5,4516.4,0.7766]
[1756347646228,1.1557,4516.5,4516.4,0.9654]
[1756347646428,0.8621,4516.5,4516.1,0.7766]
[1756347646628,3.2078,4516.7,4516.1,0.7766]
[1756347646629,0.8621,4516.2,4516.1,1.2304]
[1756347646828,1.1557,4516.2,4516.1,1.6588]
[1756347647030,1.1557,4516.2,4516.1,1.2304]
[1756347647833,1.1557,4516.2,4516.1,1.6588]
[1756347648735,1.1557,4516.2,4516.1,1.0287]
[1756347649030,3.609,4516.2,4515.7,1.6588]
[1756347649234,9.899,4516.1,4516.0,1.6588]
[1756347649532,0.8621,4516.6,4516.5,1.1921]
[1756347649729,19.4711,4516.6,4516.5,1.6588]
[1756347649933,0.8621,4516.6,4516.5,1.6588]
[1756347650230,0.8621,4516.9,4516.8,1.6588]
[1756347650427,21.2901,4516.9,4516.8,1.6588]
[1756347650630,20.8889,4516.9,4516.8,1.6588]
[1756347650928,35.0908,4517.3,4516.9,1.0033]
[1756347651232,0.8621,4517.0,4516.9,1.6588]
[1756347651430,35.0908,4517.3,4516.9,1.0839]
[1756347651631,20.431,4517.2,4516.7,0.39849]
[1756347651828,20.431,4517.2,4517.1,0.6555]
[1756347652034,20.431,4517.2,4517.1,1.6588]
[1756347652233,20.6254,4517.2,4517.1,1.6588]
[1756347652437,20.8919,4517.2,4517.1,1.6588]
[1756347652732,21.2931,4517.2,4517.1,1.6588]
[1756347654028,21.5867,4517.2,4517.1,1.2304]
[1756347655134,21.5867,4517.2,4517.1,1.6588]
[1756347655525,21.5867,4517.2,4517.1,1.2304]
[1756347655729,21.5867,4517.2,4517.1,0.5749]
[1756347655931,1.1557,4516.6,4516.5,3.7827]
[1756347656131,21.5747,4516.6,4516.5,3.7827]
[1756347656334,1.1557,4516.6,4516.5,4.4382]
[1756347656535,21.5867,4516.6,4516.5,4.4382]
[1756347657140,21.5867,4516.6,4516.5,3.9844]
[1756347657738,21.5867,4516.6,4516.5,4.1732]
[1756347659134,21.5867,4516.6,4516.5,0.9654]
[1756347659435,0.8621,4516.6,4516.5,1.6588]
[1756347659636,21.2801,4516.6,4516.5,1.6588]
[1756347660432,0.4012,4517.0,4516.9,1.6588]
[1756347660633,4.0699,4517.2,4517.1,1.6588]
[1756347660828,24.4869,4517.2,4517.1,1.6588]
[1756347661033,24.7805,4517.2,4517.1,1.6588]
[1756347661335,24.4869,4517.2,4517.1,1.6588]
[1756347661537,24.0857,4517.2,4517.1,1.6588]
[1756347661733,24.4869,4517.2,4517.1,1.6588]
[1756347662242,24.0857,4517.2,4517.1,1.6588]
[1756347662443,20.8779,4517.2,4517.1,1.6588]
[1756347663143,21.2735,4517.2,4517.1,1.6588]
[1756347663438,31.883,4517.3,4517.1,1.6588]
[1756347663642,3.2078,4517.7,4517.6,1.67872576]
[1756347663836,23.6168,4517.7,4517.6,1.67872576]
[1756347664036,24.4724,4517.7,4517.6,1.67872576]
[1756347664438,23.6178,4517.7,4517.6,1.67872576]
[1756347664636,23.8154,4517.7,4517.6,1.67872576]
[1756347664837,24.0778,4517.7,4517.6,1.67872576]
[1756347665138,24.4734,4517.7,4517.6,1.67872576]
[1756347665439,23.6178,4517.7,4517.2,0.2943]
[1756347665644,1.1424,4517.2,4516.4,3.5021]
[1756347665936,1.1424,4516.5,4516.0,0.7076]
[1756347666142,1.1424,4516.1,4516.0,0.7888]
[1756347666340,21.5664,4516.1,4516.0,0.7888]
[1756347666540,20.884,4516.1,4515.9,3.7946]
[1756347666742,1.1424,4516.0,4515.9,3.7946]
[1756347667048,20.428,4516.0,4515.9,4.8904]
[1756347667237,20.428,4516.0,4515.9,4.4771]
[1756347667238,21.5704,4516.0,4515.9,4.4771]
[1756347667438,21.5704,4516.0,4515.9,3.2078]
[1756347667643,0.46,4515.6,4515.5,0.5868]
[1756347667843,21.2896,4515.6,4515.5,1.2693]
[1756347668143,21.2896,4515.6,4515.5,1.6826]
[1756347668544,1.1424,4515.5,4515.4,3.2078]
[1756347668741,0.8556,4515.5,4515.4,4.4771]
[1756347668934,3.2078,4516.3,4515.9,0.6825]
[1756347668935,0.3956,4516.0,4515.9,0.6825]
[1756347669137,21.2896,4516.0,4515.9,1.6826]
[1756347669442,21.1808,4516.0,4515.4,4.4099]
[1756347669745,1.1424,4515.5,4515.4,4.4771]
[1756347670040,1.1424,4515.5,4515.4,3.9966]
[1756347670041,21.5774,4515.5,4515.4,3.9966]
[1756347670544,0.1976,4515.5,4515.4,1.2693]
[1756347670839,8.9596,4515.5,4515.4,1.6826]
[1756347671039,0.1976,4515.5,4515.4,1.6826]
[1756347671240,0.6824,4516.2,4515.6,0.4133]
[1756347671440,0.8556,4516.1,4516.0,1.2693]
[1756347671749,21.5894,4516.1,4516.0,0.9857]
[1756347672042,21.3026,4516.1,4516.0,1.6826]
[1756347672347,21.3026,4516.5,4516.4,1.6826]
[1756347672545,3.2078,4516.8,4516.4,0.6825]
[1756347672843,53.2206,4516.9,4516.8,1.6826]
[1756347673045,0.18079698,4519.3,4516.8,1.6826]
[1756347673046,0.3956,4518.9,4517.3,0.2943]
[1756347673347,0.3956,4518.9,4518.1,0.7058]
[1756347673644,2.3318,4519.1,4518.4,0.2943]
[1756347673845,2.3318,4519.1,4518.4,0.5868]
[1756347674148,0.3956,4519.0,4518.4,0.5868]
[1756347675144,0.3956,4519.0,4518.3,0.4133]
[1756347675444,2.045,4519.1,4518.7,0.2925]
[1756347675944,0.6824,4519.0,4518.7,0.5868]
[1756347676150,0.2868,4519.0,4518.0,7.35916388]
[1756347676350,1.1424,4519.0,4518.9,0.3989]
[1756347676552,0.8556,4519.0,4518.9,1.2693]
[1756347676950,1.1424,4519.0,4518.9,1.2693]
[1756347677948,0.8556,4519.0,4518.9,1.2693]
[1756347678553,0.8556,4519.0,4518.9,1.6826]
[1756347678748,1.46,4519.5,4519.4,0.3989]
[1756347678954,10.6996,4519.5,4519.4,1.6826]
[1756347679156,10.9864,4519.5,4519.4,1.2693]
[1756347679550,1.8556,4519.5,4519.4,1.2693]
[1756347679854,12.084,4519.5,4519.4,1.6826]
[1756347680151,1.46,4519.5,4519.4,1.6826]
[1756347680953,1.8556,4519.5,4519.4,1.6826]
[1756347683155,1.0,4519.5,4519.4,1.6826]
[1756347683557,1.1976,4519.5,4519.4,1.6826]
[1756347683760,1.8556,4519.5,4519.4,1.6826]
[1756347684947,1.8556,4519.5,4519.4,1.2693]
[1756347685147,1.8556,4519.5,4519.2,0.2943]
[1756347685148,0.46,4519.3,4519.2,0.2943]
[1756347685354,1.0,4519.5,4519.2,0.6825]
[1756347685558,1.0,4519.5,4519.4,1.6826]
[1756347686154,1.8556,4519.5,4519.4,1.6826]
[1756347686352,0.46,4519.2,4519.1,0.5868]
[1756347686560,1.1424,4519.2,4519.1,0.5868]
[1756347686852,0.8556,4518.9,4518.8,1.2693]
[1756347687260,0.8556,4518.9,4518.8,1.6826]
[1756347687556,1.1424,4518.9,4518.8,0.7888]
[1756347687958,1.1424,4518.9,4518.8,1.2693]
[1756347689750,1.1424,4518.9,4518.8,0.7888]
[1756347690258,1.1424,4518.9,4518.8,1.2693]
[1756347690557,0.8556,4518.9,4518.8,1.6826]
[1756347691856,0.8811,4519.0,4518.9,1.6661]
[1756347692062,0.2033,4519.0,4518.9,1.6661]
[1756347692355,8.9843,4519.3,4519.2,1.6661]
[1756347692560,0.4093,4519.2,4518.9,0.9921]
[1756347692754,0.8811,4519.0,4518.9,0.6624]
[1756347693058,1.1808,4519.0,4518.9,0.1961]
[1756347693257,0.709,4518.9,4518.6,0.3071]
[1756347693457,0.8811,4518.7,4518.6,1.2717]
[1756347693652,0.8811,4518.7,4518.6,1.6661]
[1756347696663,1.1808,4519.2,4519.1,1.2717]
[1756347696860,0.8811,4519.2,4519.1,1.6661]
[1756347697057,19.809,4519.3,4519.2,1.6661]
[1756347697860,20.6901,4519.3,4519.2,1.6661]
[1756347698260,20.9898,4519.3,4519.2,0.9921]
[1756347698568,0.4093,4519.0,4518.9,1.6661]
[1756347698766,20.441,4519.2,4519.1,0.6624]
[1756347699064,20.442,4519.4,4519.2,1.0037]
[1756347699267,20.6453,4519.4,4519.3,1.6661]
[1756347699663,21.0546,4519.4,4519.3,1.6661]
[1756347699865,21.3231,4519.4,4519.3,1.6661]
[1756347700764,21.6228,4519.4,4519.3,1.2717]
[1756347701065,20.442,4519.4,4519.1,0.3022]
[1756347701262,1.1808,4519.2,4519.1,0.3022]
[1756347701469,1.1808,4519.2,4519.1,1.2717]
[1756347701663,1.0,4519.5,4519.1,1.6661]
[1756347701865,0.8811,4519.2,4519.1,1.6661]
[1756347703966,1.1808,4519.2,4519.1,1.2717]
[1756347704673,1.1808,4519.2,4519.1,1.6661]
[1756347704968,1.1808,4518.9,4518.8,1.2717]
[1756347705172,20.6263,4518.9,4518.8,1.6661]
[1756347705471,21.3041,4518.9,4518.8,1.6661]
[1756347706070,1.0,4519.5,4519.2,0.3071]
[1756347706264,1.0,4519.5,4519.1,0.4757]
[1756347706265,1.4718,4519.5,4519.4,0.6624]
[1756347706578,14.01904153,4519.5,4519.4,1.6661]
[1756347706772,14.42834153,4519.5,4519.4,1.6661]
[1756347706973,14.72804153,4519.5,4519.0,0.3944]
[1756347707172,1.1808,4519.1,4519.0,0.6093]
[1756347708377,1.1808,4519.1,4519.0,1.6661]
[1756347708674,21.2981,4519.1,4519.0,1.6661]
[1756347708879,0.4718,4519.4,4519.3,0.4757]
[1756347709083,21.5968,4519.4,4519.3,1.2717]
[1756347709572,22.12611659,4519.4,4519.3,1.2717]
[1756347710267,21.5968,4519.4,4519.3,1.2717]
[1756347710472,20.8888,4519.4,4519.3,1.6661]
[1756347710686,0.8811,4519.4,4519.3,1.6661]
[1756347710874,1.0,4519.5,4519.4,1.6661]
[1756347711071,0.1,4520.2,4520.1,0.1961]
[1756347711381,0.1,4520.2,4520.1,2.0643]
[1756347713274,0.1,4520.2,4520.1,1.6661]
[1756347714979,0.1,4520.2,4520.1,5.6661]
[1756347715367,0.3033,4520.2,4520.1,1.6661]
[1756347715571,0.5718,4520.2,4520.1,1.6661]
[1756347715978,1.7977,4520.2,4520.1,1.6661]
[1756347716476,0.5718,4520.2,4520.1,1.6661]
[1756347716778,1.7977,4520.2,4520.1,1.6661]
[1756347717183,0.3033,4520.2,4520.1,1.6661]
[1756347717385,1.7977,4520.2,4520.1,1.6661]
[1756347717574,0.7717,4520.2,4519.8,0.6966]
[1756347717774,1.6977,4519.9,4519.8,1.359]
[1756347718282,1.6977,4519.9,4519.8,1.6661]
[1756347718778,1.6977,4519.9,4519.8,0.1867]
[1756347719074,1.6977,4519.9,4519.5,0.3022]
[1756347719274,1.6977,4519.3,4519.1,0.3022]
[1756347719476,22.1267,4519.2,4519.1,0.3022]
[1756347719679,22.1267,4519.2,4519.1,1.359]
[1756347719881,22.1277,4519.2,4519.1,1.359]
[1756347720578,1.6977,4518.8,4518.4,0.3022]
[1756347720885,24.43,4519.2,4518.6,1.359]
[1756347720886,20.9128,4518.7,4518.6,1.359]
[1756347721077,20.444,4518.9,4518.6,4.8739]
[1756347721273,21.1661,4519.9,4519.8,1.6661]
[1756347721482,22.1457,4519.9,4519.8,1.6661]
[1756347721672,1.3898,4519.9,4519.8,1.6661]
[1756347722083,1.6866,4519.9,4519.8,1.6661]
[1756347722277,1.3756,4519.9,4519.8,1.6661]
[1756347722474,0.6419,4519.5,4519.4,0.2906]
[1756347722676,0.5872,4519.4,4519.2,0.3991]
[1756347722978,1.1619,4519.4,4519.3,1.6277]
[1756347723181,0.7466,4519.4,4519.3,1.6277]
[1756347723482,0.4562,4519.4,4519.3,1.6277]
[1756347723684,0.1959,4519.4,4519.3,1.6277]
[1756347724481,21.3195,4519.7,4519.6,0.6553]
[1756347724780,0.4562,4519.7,4519.6,1.6277]
[1756347724985,1.3476,4519.7,4519.6,1.6277]
[1756347725176,0.6419,4519.7,4519.1,3.7811]
[1756347725377,20.444,4519.8,4519.1,4.8355]
[1756347725378,1.3476,4519.2,4519.1,4.8355]
[1756347725779,22.0844,4519.2,4519.1,3.2078]
[1756347725980,1.6444,4518.7,4518.6,4.065]
[1756347726281,22.0864,4518.7,4518.2,0.79746]
[1756347726583,1.6444,4518.2,4518.1,4.1537]
[1756347726882,22.0884,4518.2,4518.1,4.1537]
[1756347727283,22.0884,4518.2,4518.1,4.8355]
[1756347727787,1.3476,4518.2,4518.1,4.8355]
[1756347727982,0.4153,4518.5,4518.1,4.8355]
[1756347728282,1.6444,4519.2,4519.1,1.6277]
[1756347728480,0.7466,4519.6,4519.5,0.461]
[1756347728786,14.9036,4519.6,4519.5,1.6277]
[1756347730386,0.1959,4519.6,4519.5,1.6277]
[1756347731087,20.465,4519.8,4519.6,0.9724]
[1756347731282,0.4153,4520.0,4519.7,1.6277]
[1756347731482,0.1959,4519.9,4519.8,0.6553]
[1756347731677,0.1959,4519.9,4519.8,1.6277]
[1756347732882,0.1,4520.2,4520.1,1.6277]
[1756347733186,1.7444,4520.2,4520.1,0.4849]
[1756347733484,1.0025,4519.8,4519.7,3.2078]
[1756347733681,21.5152,4519.8,4519.1,3.2078]
[1756347733879,1.6444,4519.2,4519.1,4.1537]
[1756347734082,0.1959,4519.6,4519.5,0.6553]
[1756347734282,20.47,4519.8,4519.6,0.9724]
[1756347734587,0.4562,4519.9,4519.8,1.6277]
[1756347735488,1.6444,4519.9,4519.8,1.6277]
[1756347735989,1.6444,4519.9,4519.8,0.9459]